fUST/lending_fUST_20250804
["ID","MTS","AMOUNT","RATE_DAILY","PERIOD"]
[377070737,1754236821923,158.0,0.00024,120]
[377070738,1754236823606,158.0,0.000284,120]
[377070739,1754236835730,200.0,0.00028146,120]
[377070742,1754237072198,200.0,0.00029573,120]
[377070744,1754237099139,161.165952,0.00013699,2]
[377070747,1754237136086,-972.02,0.00023329,2]
[377070748,1754237136111,-161.165952,0.00023973,2]
[377070749,1754237136134,-161.65,0.00025896,7]
[377070750,1754237136156,-151.0,0.000282,2]
[377070751,1754237136178,-186.37964647,0.000282,2]
[377070752,1754237136200,-47.8335241,0.000282,2]
[377070758,1754237207094,-138.54612238,0.000282,2]
[377070759,1754237207115,-45.30004845,0.000282,2]
[377070760,1754237371132,200.0,0.00029221,120]
[377070796,1754237432090,-150.0,0.000263,2]
[377070798,1754237432101,-313.96193404,0.00028167,2]
[377070800,1754237432111,-440.22,0.000282,2]
[377070802,1754237432121,-221.75929295,0.000283,2]
[377070803,1754237432130,-162.02155506,0.00029352,10]
[377070805,1754237432140,-1000.0,0.0003,4]
[377070807,1754237432150,-200.0,0.0003079,120]
[377070809,1754237432159,-150.0,0.000313,2]
[377070811,1754237432169,-500.0,0.000318,5]
[377070812,1754237432179,-500.0,0.000318,5]
[377070814,1754237432189,-233.5138203,0.00031873,2]
[377070816,1754237432199,-195.01,0.00032547,2]
[377070817,1754237432208,-158.0,0.000328,120]
[377070818,1754237432218,-164.0,0.00033,14]
[377070819,1754237432230,-232.0,0.00033081,3]
[377070820,1754237432240,-1404.4116114,0.00033082,35]
[377070821,1754237432249,-5799.6443353,0.00033374,2]
[377070822,1754237432258,-557.27456434,0.00033965,2]
[377070881,1754237437933,-148.60421496,0.00033965,2]
[377070883,1754237437943,-151.39578504,0.00034019,2]
[377070891,1754237438024,-255.60421496,0.00034019,2]
[377070892,1754237438034,-161.165952,0.00034247,2]
[377070894,1754237438043,-200.0,0.00034736,15]
[377070895,1754237438054,-200.0,0.00034736,15]
[377070896,1754237438064,-200.0,0.00034736,15]
[377070897,1754237438074,-2326.992308,0.0003482,2]
[377070898,1754237438083,-1319.393768,0.00034848,2]
[377070899,1754237438092,-160.0,0.0003494,2]
[377070900,1754237438102,-970.0,0.00035099,2]
[377070901,1754237438111,-2147.0,0.00035099,2]
[377070902,1754237438121,-260.0,0.00035488,2]
[377070904,1754237438131,-360.0,0.00036036,2]
[377070906,1754237438140,-460.0,0.00036584,2]
[377070908,1754237438150,-407.0,0.00037019,2]
[377070910,1754237438160,-560.0,0.00037132,2]
[377070911,1754237438170,-158.0,0.000372,120]
[377070912,1754237438180,-180.421,0.000372,47]
[377070913,1754237438189,-660.0,0.0003768,2]
[377070915,1754237438198,-200.0,0.00038034,15]
[377070917,1754237438208,-200.0,0.00038034,15]
[377070919,1754237438218,-200.0,0.00038034,15]
[377070921,1754237438229,-240.0,0.00038034,15]
[377070923,1754237438238,-760.0,0.00038228,2]
[377070925,1754237438251,-320.46807936,0.00038776,2]
[377070927,1754237438261,-241.31593178,0.00039,14]
[377070929,1754237438270,-436.17404912,0.00039473,2]
[377070930,1754237438281,-2000.0,0.000395,120]
[377070931,1754237438292,-2000.0,0.000395,120]
[377070932,1754237438303,-2000.0,0.000395,120]
[377070933,1754237438315,-1081.71,0.00039549,3]
[377070934,1754237438327,-540.86,0.00039549,3]
[377070935,1754237438337,-270.43,0.00039549,3]
[377070936,1754237438346,-811.3,0.00039549,3]
[377070937,1754237438357,-1074.86,0.00039549,10]
[377070938,1754237438367,-500.0,0.00039549,3]
[377070939,1754237438377,-215.12253551,0.00039549,3]
[377070940,1754237438387,-14970.791483,0.00039549,3]
[377070941,1754237438399,-177.45518202,0.00039549,3]
[377070942,1754237438410,-436.1740491,0.00039552,2]
[377070943,1754237438421,-500.0,0.00039558,2]
[377070944,1754237438431,-473.22459584,0.00039558,2]
[377070945,1754237438441,-897.00655405,0.00039559,2]
[377070946,1754237438451,-119766.331864,0.00039559,3]
[377070947,1754237438462,-1419.64145616,0.00039559,3]
[377070948,1754237438473,-630.2483594,0.00039568,15]
[377070949,1754237438483,-855.37,0.00039569,120]
[377070950,1754237438493,-10502.91666509,0.00039569,2]
[377070951,1754237438513,-95790.24402702,0.00039569,2]
[377071006,1754237440340,-2237.75187686,0.000394,2]
[377071008,1754237440350,-19509.47259941,0.00039569,2]
[377071055,1754237581579,15000.0,0.00022,120]
[377071056,1754237582902,300.0,0.00021999,2]
[377071059,1754238142444,157.0,0.00024,120]
[377071060,1754238143824,157.0,0.00029,120]
[377071062,1754238235753,189.0,0.00026,120]
[377071065,1754238286810,161.163521,0.00013699,2]
[377071066,1754238287044,161.163521,0.00024907,2]
[377071072,1754238352089,-161.65,0.00025912,7]
[377071073,1754238352112,-161.65,0.00026012,7]
[377071074,1754238352135,-161.65,0.00026112,7]
[377071075,1754238352156,-300.0,0.00026974,2]
[377071076,1754238352177,-503.3165218,0.00026975,2]
[377071077,1754238352304,-192.5489487,0.0002786,2]
[377071078,1754238352333,-166.14274986,0.00028323,15]
[377071080,1754238364767,176.37,0.00025,7]
[377071082,1754238410108,-176.37,0.00027401,7]
[377071083,1754238410128,-8.0719051,0.00028,30]
[377071089,1754238518537,3781.82220768,0.00021739,2]
[377071091,1754238527986,41571.64394356,0.0002249,7]
[377071112,1754238632199,-200.0,0.0002654,14]
[377071114,1754238632209,-174.4723017,0.000279,2]
[377071116,1754238632219,-300.0,0.00027999,2]
[377071118,1754238632228,-2828.88565985,0.00028,30]
[377071296,1754238637956,-312.16666667,0.00028,30]
[377071297,1754238637967,-435.81,0.000283,2]
[377071298,1754238637977,-605.93941817,0.00028498,22]
[377071299,1754238637987,-556.46688052,0.00028641,10]
[377071300,1754238637996,-200.0,0.00028641,10]
[377071301,1754238638006,-977.14509581,0.00028641,2]
[377071302,1754238638015,-9201.65468757,0.00028641,2]
[377071303,1754238638025,-162.74872164,0.00028641,2]
[377071305,1754238638035,-204.98950828,0.00028641,2]
[377071307,1754238638044,-10014.20142812,0.00028641,2]
[377071308,1754238638054,-1958.0328922,0.000287,2]
[377071309,1754238638063,-167.62301021,0.000288,7]
[377071310,1754238638072,-330.14107482,0.0002887,2]
[377071311,1754238638081,-388.46465256,0.000289,20]
[377071312,1754238638091,-500.0,0.00028975,5]
[377071313,1754238638101,-500.0,0.00028975,5]
[377071314,1754238638110,-874.27977792,0.00029,2]
[377071315,1754238638119,-162.02155506,0.00029352,10]
[377071316,1754238638131,-200.0,0.00029399,15]
[377071317,1754238638140,-300.0,0.00029399,15]
[377071318,1754238638149,-500.0,0.00029523,5]
[377071319,1754238638159,-1000.0,0.00029523,5]
[377071320,1754238638168,-500.0,0.00029625,5]
[377071321,1754238638177,-500.01894309,0.00029625,5]
[377071322,1754238638187,-562.08442881,0.00029625,5]
[377071323,1754238638196,-500.0,0.00029625,5]
[377071324,1754238638206,-500.0,0.00029625,5]
[377071325,1754238638215,-500.0,0.00029625,5]
[377071326,1754238638224,-500.0,0.00029625,5]
[377071327,1754238638234,-500.0,0.00029625,5]
[377071328,1754238638244,-500.0,0.00029625,5]
[377071329,1754238638254,-401.92020003,0.0003,10]
[377071330,1754238638263,-3389.78684908,0.0003,30]
[377071331,1754238638273,-1560.58065866,0.0003,10]
[377071332,1754238638282,-165.46,0.0003,5]
[377071333,1754238638293,-1399.68102324,0.00030071,5]
[377071334,1754238638302,-518.37749102,0.000301,5]
[377071335,1754238638311,-500.0,0.000301,5]
[377071336,1754238638320,-622.81382546,0.000301,5]
[377071337,1754238638329,-501.05183301,0.000301,5]
[377071338,1754238638339,-500.0,0.000301,5]
[377071339,1754238638349,-502.30217876,0.000301,2]
[377071340,1754238638359,-352.69100606,0.0003013,15]
[377071341,1754238638369,-11310.06327856,0.0003013,5]
[377071342,1754238638379,-500.0,0.00030172,2]
[377071343,1754238638388,-473.22459584,0.00030172,2]
[377071344,1754238638398,-500.0,0.00030173,5]
[377071345,1754238638407,-500.0,0.00030173,5]
[377071346,1754238638416,-500.0,0.00030173,5]
[377071347,1754238638426,-226.52354949,0.00030173,5]
[377071348,1754238638435,-500.0,0.00030173,5]
[377071349,1754238638444,-501.83596661,0.00030173,5]
[377071350,1754238638454,-500.0,0.00030173,5]
[377071351,1754238638464,-500.0,0.00030173,5]
[377071352,1754238638473,-500.0,0.00030173,5]
[377071353,1754238638482,-503.54914706,0.00030173,5]
[377071354,1754238638492,-500.0,0.00030173,5]
[377071355,1754238638501,-500.0,0.00030173,5]
[377071356,1754238638510,-1000.0,0.00030173,5]
[377071357,1754238638520,-1000.0,0.00030173,5]
[377071358,1754238638529,-1000.0,0.00030173,5]
[377071359,1754238638539,-667.33552989,0.00030173,5]
[377071360,1754238638548,-858.45193933,0.00030173,5]
[377071361,1754238638558,-420.0,0.00030239,2]
[377071362,1754238638568,-500.0,0.0003025,5]
[377071363,1754238638580,-500.0,0.0003025,5]
[377071364,1754238638589,-200.0,0.0003025,5]
[377071365,1754238638599,-500.0,0.00030433,5]
[377071366,1754238638608,-500.0,0.00030447,5]
[377071367,1754238638618,-1000.0,0.00030648,5]
[377071368,1754238638627,-1000.0,0.00030648,5]
[377071369,1754238638637,-547.10620068,0.00030721,5]
[377071370,1754238638648,-500.0,0.00030721,5]
[377071371,1754238638658,-1000.0,0.00030721,5]
[377071372,1754238638668,-1000.0,0.00030721,5]
[377071373,1754238638677,-1008.10068389,0.00030721,5]
[377071374,1754238638687,-1000.0,0.00030721,5]
[377071375,1754238638696,-501.87160946,0.00030721,5]
[377071376,1754238638706,-500.0,0.00030721,5]
[377071377,1754238638715,-245.79341206,0.00030721,5]
[377071378,1754238638728,-500.0,0.00030721,5]
[377071379,1754238638738,-266.29760607,0.00030721,5]
[377071380,1754238638748,-1000.0,0.00030798,5]
[377071381,1754238638757,-1006.47691141,0.00030798,5]
[377071382,1754238638768,-302.05632351,0.0003099,2]
[377071383,1754238638778,-505.71521664,0.00030995,5]
[377071384,1754238638787,-160.0,0.00031027,2]
[377071385,1754238638798,-895.59999331,0.00031196,5]
[377071386,1754238638810,-1004.59678505,0.00031196,5]
[377071387,1754238638820,-439.24166807,0.00031268,5]
[377071388,1754238638829,-1500.0,0.00031268,5]
[377071389,1754238638839,-1527.6003282,0.00031346,5]
[377071390,1754238638849,-260.0,0.00031575,2]
[377071391,1754238638858,-360.0,0.00032123,2]
[377071392,1754238638867,-200.0,0.00032222,15]
[377071393,1754238638876,-200.0,0.00032222,15]
[377071394,1754238638887,-300.0,0.00032222,15]
[377071395,1754238638897,-167.15,0.00032437,2]
[377071396,1754238638907,-587.0,0.00032658,2]
[377071397,1754238638916,-460.0,0.00032671,2]
[377071398,1754238638928,-560.0,0.00033219,2]
[377071399,1754238638949,-780.4,0.000333,7]
[377071400,1754238638960,-660.0,0.00033767,2]
[377071401,1754238638970,-157.0,0.00034,120]
[377071402,1754238638981,-1253.16,0.00034131,10]
[377071403,1754238638994,-3764.2605672,0.00034141,2]
[377071404,1754238639004,-760.0,0.00034315,2]
[377071405,1754238639013,-860.0,0.00034863,2]
[377071406,1754238639023,-823.0,0.00035271,2]
[377071407,1754238639033,-1044.3,0.00035307,10]
[377071408,1754238639043,-200.0,0.00035317,15]
[377071409,1754238639053,-200.0,0.00035317,15]
[377071410,1754238639063,-200.0,0.00035317,15]
[377071411,1754238639072,-379.0,0.00035317,15]
[377071412,1754238639082,-620.46807936,0.00035411,2]
[377071413,1754238639091,-152.233886,0.00035964,2]
[377071414,1754238639101,-161.163521,0.00036115,2]
[377071415,1754238639111,-182.57103385,0.000363,5]
[377071416,1754238639120,-500.0,0.000363,5]
[377071417,1754238639130,-505.73271087,0.000363,5]
[377071418,1754238639139,-500.0,0.000363,5]
[377071419,1754238639149,-500.0,0.000363,5]
[377071420,1754238639158,-500.0,0.000363,5]
[377071421,1754238639169,-590.09791502,0.000363,5]
[377071422,1754238639178,-500.0,0.000363,5]
[377071423,1754238639188,-630.62758701,0.00036848,5]
[377071424,1754238639198,-1000.0,0.00036848,5]
[377071425,1754238639208,-1000.0,0.00036848,5]
[377071426,1754238639218,-380.94454171,0.0003685,5]
[377071427,1754238639228,-500.0,0.0003685,5]
[377071428,1754238639237,-500.0,0.0003685,5]
[377071429,1754238639247,-500.0,0.0003685,5]
[377071430,1754238639257,-500.0,0.0003685,5]
[377071431,1754238639267,-500.0,0.0003685,5]
[377071432,1754238639276,-500.0,0.0003685,5]
[377071433,1754238639287,-152.233886,0.00037154,10]
[377071434,1754238639297,-1500.0,0.00037396,5]
[377071435,1754238639306,-1507.44390508,0.00037396,5]
[377071436,1754238639322,-1002.50247681,0.00037398,5]
[377071437,1754238639332,-1000.0,0.00037398,5]
[377071438,1754238639341,-1000.0,0.00037398,5]
[377071439,1754238639351,-1000.0,0.00037398,5]
[377071440,1754238639361,-1115.76643537,0.00037398,5]
[377071441,1754238639370,-1000.0,0.00037398,5]
[377071442,1754238639380,-780.4,0.000376,7]
[377071443,1754238639390,-1233.21080716,0.00037944,5]
[377071444,1754238639405,-1500.0,0.00037946,5]
[377071445,1754238639414,-1500.0,0.00037946,5]
[377071446,1754238639424,-1141.7037864,0.00037946,5]
[377071447,1754238639435,-1015.95931533,0.00037946,5]
[377071448,1754238639446,-2266.03,0.00038,38]
[377071449,1754238639456,-1152.0,0.00038092,2]
[377071450,1754238639465,-500.0,0.00038356,5]
[377071451,1754238639474,-2000.0,0.00038494,5]
[377071452,1754238639483,-200.0,0.00038709,30]
[377071453,1754238639492,-200.0,0.00038709,30]
[377071454,1754238639502,-200.0,0.00038709,30]
[377071455,1754238639511,-200.0,0.00038709,30]
[377071456,1754238639521,-200.0,0.00038709,30]
[377071457,1754238639533,-371.0,0.00038709,30]
[377071458,1754238639544,-157.0,0.00039,120]
[377071459,1754238639553,-2000.0,0.00039,39]
[377071460,1754238639562,-2500.0,0.00039042,5]
[377071461,1754238639571,-436.17404912,0.00039359,2]
[377071462,1754238639582,-200.0,0.00039368,120]
[377071463,1754238639592,-1081.71,0.00039449,3]
[377071464,1754238639602,-540.86,0.00039449,3]
[377071465,1754238639611,-270.43,0.00039449,3]
[377071466,1754238639621,-811.3,0.00039449,3]
[377071467,1754238639631,-30972.2489922,0.00039459,3]
[377071826,1754238861333,156.0,0.00024,120]
[377071827,1754238862724,156.0,0.000298,120]
[377071984,1754239227191,161.163742,0.00013699,2]
[377071985,1754239239327,3986.67306476,0.00025204,2]
[377071986,1754239336462,160.0,0.00024,120]
[377071987,1754239341019,192.12186416,0.00025104,2]
[377071988,1754239365640,161.28,0.00025,7]
[377071989,1754239368975,1080.21654923,0.00025104,2]
[377071990,1754239376509,192.12186415,0.00025104,2]
[377071991,1754239428946,5000.0,0.000252,8]
[377071992,1754239434856,173.22,0.00025,7]
[377071993,1754239444252,5000.0,0.000252,8]
[377071994,1754239460238,5000.0,0.000252,8]
[377071995,1754239475988,3610.12118089,0.000252,8]
[377071996,1754239504026,174.29,0.000252,7]
[377071997,1754239573418,154.92,0.000252,7]
[377071998,1754239619095,-160.0,0.00025204,2]
[377071999,1754239619121,-23.03502286,0.00025907,7]
[377072000,1754239659776,1350.0,0.00030137,120]
[377072033,1754239832395,-142.76497714,0.00025907,7]
[377072034,1754239832405,-165.8,0.00026007,7]
[377072035,1754239832414,-161.163742,0.00026027,2]
[377072036,1754239832423,-165.8,0.00026107,7]
[377072037,1754239832433,-165.8,0.00026207,7]
[377072038,1754239832442,-165.8,0.00026307,7]
[377072039,1754239832451,-165.8,0.00026407,7]
[377072040,1754239832460,-165.83826363,0.00026507,7]
[377072041,1754239832473,-300.0,0.0002696,2]
[377072042,1754239832483,-300.0,0.00026961,2]
[377072044,1754239832492,-300.0,0.00026961,2]
[377072045,1754239832501,-1200.0,0.00026961,2]
[377072047,1754239832511,-300.0,0.00026961,2]
[377072049,1754239832520,-10000.0,0.00026962,2]
[377072051,1754239832530,-392.23,0.000286,2]
[377072053,1754239832539,-929.0,0.00028755,2]
[377072055,1754239832548,-21134.82909499,0.00028755,2]
[377072057,1754239832558,-420.0,0.00029148,2]
[377072059,1754239832567,-420.0,0.00029149,2]
[377072061,1754239832577,-1288.0,0.00029278,2]
[377072063,1754239832586,-200.0,0.00030192,15]
[377072065,1754239832596,-200.0,0.00030192,15]
[377072067,1754239832606,-200.0,0.00030192,15]
[377072070,1754239832615,-160.0,0.000303,120]
[377072072,1754239832626,-500.0,0.00030473,5]
[377072073,1754239832636,-500.0,0.00030473,5]
[377072075,1754239832646,-500.0,0.00030473,5]
[377072077,1754239832655,-1000.0,0.00031021,5]
[377072079,1754239832665,-584.08680848,0.00031021,5]
[377072081,1754239832674,-500.0,0.00031021,5]
[377072083,1754239832683,-587.0,0.00031513,2]
[377072085,1754239832693,-302.0,0.00031515,3]
[377072087,1754239832702,-1713.27878071,0.00031673,2]
[377072089,1754239832712,-24900.0,0.00031742,2]
[377072091,1754239832721,-500.79878194,0.00031773,5]
[377072093,1754239832731,-527.42201844,0.00031773,5]
[377072095,1754239832740,-539.4923896,0.00031773,5]
[377072097,1754239832749,-500.0,0.00031773,5]
[377072099,1754239832759,-500.0,0.00031773,5]
[377072101,1754239832768,-212.454176,0.00031773,5]
[377072103,1754239832778,-500.0,0.00031773,5]
[377072105,1754239832787,-500.0,0.00031773,5]
[377072107,1754239832796,-500.0,0.00031773,5]
[377072109,1754239832807,-199.9,0.00031781,2]
[377072111,1754239832816,-160.0,0.00031986,2]
[377072113,1754239832826,-1004.59678505,0.00032321,5]
[377072115,1754239832835,-500.0,0.00032453,5]
[377072117,1754239832845,-500.0,0.00032453,5]
[377072119,1754239832854,-547.10620068,0.00032453,5]
[377072121,1754239832864,-500.72644918,0.00032453,5]
[377072123,1754239832873,-500.0,0.00032453,5]
[377072125,1754239832883,-200.0,0.00032453,5]
[377072127,1754239832892,-260.0,0.00032534,2]
[377072129,1754239832902,-502.61642722,0.00032538,5]
[377072131,1754239832911,-500.0,0.00032727,5]
[377072133,1754239832921,-500.0,0.00033001,5]
[377072135,1754239832930,-939.24166807,0.00033001,5]
[377072137,1754239832940,-1000.0,0.00033001,5]
[377072140,1754239832949,-360.0,0.00033082,2]
[377072142,1754239832959,-200.0,0.00033087,15]
[377072144,1754239832968,-200.0,0.00033087,15]
[377072146,1754239832978,-200.0,0.00033087,15]
[377072148,1754239832986,-240.0,0.00033087,15]
[377072150,1754239832996,-195.382984,0.000332,2]
[377072151,1754239833006,-500.0,0.00033275,5]
[377072153,1754239833015,-505.71521664,0.00033549,5]
[377072155,1754239833025,-549.51970871,0.00033549,5]
[377072158,1754239833038,-450.48029129,0.00033549,5]
[377072160,1754239833048,-134.10323453,0.00033623,10]
[377072332,1754239838151,-500.0,0.00031741,2]
[377072333,1754239838165,-500.0,0.00031741,2]
[377072334,1754239838175,-500.0,0.00031741,2]
[377072335,1754239838184,-452.66185362,0.00031741,2]
[377072336,1754239838195,-254.37142495,0.00031741,2]
[377072337,1754239838205,-500.0,0.00031741,2]
[377072338,1754239838214,-254.8095965,0.00031741,2]
[377072339,1754239838230,-369.99551319,0.00031741,2]
[377072340,1754239838243,-500.0,0.00031741,2]
[377072341,1754239838253,-500.0,0.00031741,2]
[377072342,1754239838262,-500.0,0.00031741,2]
[377072343,1754239838272,-500.0,0.00031741,2]
[377072344,1754239838282,-500.0,0.00031741,2]
[377072346,1754239838292,-489.23275204,0.00031741,2]
[377072347,1754239838304,-10.76724796,0.00031741,2]
[377072348,1754239838314,-538.41979118,0.00031741,2]
[377072349,1754239838323,-500.0,0.00031741,2]
[377072350,1754239838333,-7.81296086,0.00031741,2]
[377072352,1754239838358,-492.18703914,0.00031741,2]
[377072355,1754239838368,-500.0,0.00031741,2]
[377072356,1754239838377,-102.5422307,0.00031741,2]
[377072359,1754239838389,-397.4577693,0.00031741,2]
[377072360,1754239838398,-207.45220159,0.00031741,2]
[377072419,1754239843259,-353.0,0.000286,2]
[377072421,1754239843269,-98.97874025,0.00031741,2]
[377072427,1754239843311,-193.56905816,0.00031741,2]
[377072429,1754239843320,-307.51422859,0.00031741,2]
[377072432,1754239843331,-192.48577141,0.00031741,2]
[377072434,1754239843341,-111.32482237,0.00031741,2]
[377072437,1754239843365,-388.67517763,0.00031741,2]
[377072439,1754239843374,-500.0,0.00031741,2]
[377072442,1754239843384,-500.0,0.00031741,2]
[377072444,1754239843395,-269.59268315,0.00031741,2]
[377072588,1754240059501,159.0,0.00024,120]
[377072595,1754240100096,159.14,0.00024,2]
[377072598,1754240123879,161.260462,0.00013699,2]
[377072603,1754240657306,972.02,0.00023897,2]
[377072604,1754240686476,300.0,0.0003,120]
[377072605,1754240720424,700.0,0.0003,120]
[377072606,1754240755589,500.0,0.0003,120]
[377072607,1754240768461,700.0,0.0003,120]
[377072609,1754240802132,-161.65,0.00025905,7]
[377072610,1754240802155,-22.11505603,0.0002591,7]
[377072627,1754240888798,304.5064582,0.00027397,120]
[377072628,1754240897678,152.0,0.00024,120]
[377072629,1754240899328,152.0,0.000253,120]
[377072630,1754240900711,152.0,0.000266,120]
[377072631,1754240902104,152.0,0.000279,120]
[377072632,1754240903493,152.0,0.000292,120]
[377073654,1754241032525,-135.65494397,0.0002591,7]
[377073655,1754241032535,-157.77,0.0002601,7]
[377073656,1754241032545,-157.77,0.0002611,7]
[377073657,1754241032554,-157.77,0.0002621,7]
[377073659,1754241032564,-157.77,0.0002631,7]
[377073661,1754241032573,-157.77,0.0002641,7]
[377073663,1754241032583,-157.77,0.0002651,7]
[377073665,1754241032593,-1110.04952568,0.00026563,2]
[377073915,1754241038450,-192.12186415,0.0002641,2]
[377073916,1754241038460,-209.34424232,0.00026563,2]
[377073917,1754241038470,-157.77,0.0002661,7]
[377073918,1754241038480,-157.77,0.0002671,7]
[377073919,1754241038490,-157.77,0.0002681,7]
[377073920,1754241038500,-157.77,0.0002691,7]
[377073921,1754241038511,-157.77,0.0002701,7]
[377073923,1754241038522,-157.8,0.0002711,7]
[377073925,1754241038532,-161.260462,0.00027397,2]
[377073926,1754241038542,-150.0,0.000279,2]
[377073927,1754241038553,-261.87964648,0.000282,2]
[377073928,1754241038562,-261.87964647,0.000282,2]
[377073929,1754241038572,-406.86,0.000286,2]
[377073930,1754241038582,-181.539139,0.00029576,2]
[377073931,1754241038592,-352.0,0.00029639,2]
[377073932,1754241038602,-300.0,0.0002964,2]
[377073933,1754241038611,-276.0,0.0002964,2]
[377073934,1754241038621,-1200.0,0.00029641,2]
[377073935,1754241038631,-180.421,0.00029642,23]
[377073936,1754241038641,-24900.0,0.00029643,2]
[377073937,1754241038651,-500.0,0.00029673,5]
[377073938,1754241038661,-500.0,0.00029673,5]
[377073939,1754241038671,-500.0,0.00029673,5]
[377073940,1754241038680,-500.0,0.00029673,5]
[377073941,1754241038690,-500.0,0.00029673,5]
[377073942,1754241038700,-500.0,0.00029673,5]
[377073943,1754241038710,-160.0,0.00029867,2]
[377073944,1754241038726,-478.3353844,0.00029959,2]
[377073945,1754241038740,-666.0,0.0002996,2]
[377073946,1754241038755,-279.887426,0.0002996,2]
[377073947,1754241038765,-5843.6426106,0.0002996,2]
[377073948,1754241038776,-157.07,0.00030079,2]
[377073949,1754241038786,-1006.47691141,0.00030221,5]
[377073950,1754241038796,-1000.0,0.00030221,5]
[377073951,1754241038806,-1008.10068389,0.00030221,5]
[377073952,1754241038816,-500.0,0.00030221,5]
[377073953,1754241038826,-1000.0,0.00030221,5]
[377073954,1754241038835,-500.0,0.0003034,5]
[377073955,1754241038845,-503.54914706,0.0003034,5]
[377073956,1754241038855,-500.0,0.0003034,5]
[377073957,1754241038864,-260.0,0.00030415,2]
[377073958,1754241038874,-160.0,0.0003045,2]
[377073959,1754241038883,-152.0,0.000305,120]
[377073960,1754241038893,-500.0,0.00030766,2]
[377073961,1754241038902,-360.86390163,0.00030766,2]
[377073962,1754241038912,-500.0,0.00030766,2]
[377073963,1754241038922,-500.0,0.00030766,2]
[377073964,1754241038931,-500.0,0.00030766,2]
[377073965,1754241038941,-500.0,0.00030766,2]
[377073966,1754241038951,-500.0,0.00030766,2]
[377073967,1754241038965,-500.0,0.00030766,2]
[377073968,1754241038975,-500.0,0.00030766,2]
[377073969,1754241038984,-500.0,0.00030766,2]
[377073970,1754241038994,-404.47079388,0.00030766,2]
[377073971,1754241039003,-500.0,0.00030766,2]
[377073972,1754241039013,-500.0,0.00030766,2]
[377073973,1754241039022,-500.0,0.00030766,2]
[377073974,1754241039032,-500.0,0.00030766,2]
[377073975,1754241039041,-500.0,0.00030766,2]
[377073976,1754241039050,-197.88900903,0.00030766,2]
[377073977,1754241039060,-500.0,0.00030766,2]
[377073978,1754241039069,-500.0,0.00030766,2]
[377073979,1754241039079,-500.0,0.00030766,2]
[377073980,1754241039088,-500.0,0.00030766,2]
[377073981,1754241039098,-500.0,0.00030766,2]
[377073982,1754241039108,-500.0,0.00030766,2]
[377073983,1754241039117,-500.0,0.00030766,2]
[377073984,1754241039127,-500.0,0.00030766,2]
[377073985,1754241039136,-500.0,0.00030766,2]
[377073986,1754241039145,-500.0,0.00030766,2]
[377073987,1754241039155,-500.0,0.00030766,2]
[377073988,1754241039165,-500.0,0.00030766,2]
[377073989,1754241039174,-500.0,0.00030766,2]
[377073990,1754241039183,-500.0,0.00030766,2]
[377073991,1754241039193,-255.69282989,0.00030766,2]
[377073992,1754241039202,-500.0,0.00030766,2]
[377073993,1754241039212,-500.0,0.00030766,2]
[377073994,1754241039222,-500.0,0.00030766,2]